Workbook

Sheet Комп1
K2: 1 | L2: 3 | M2: 4
K3: 3 | L3: 4 | M3: 5
A4: Столбец1 | B4: Количество человек прошедших оценку | C4: Математика | D4: Русский | E4: Литература | F4: Физика | G4: География | H4: Информатика | I4: Физкультура | J4: Итого средняя оценка | K4: Столбец2 | L4: Столбец3 | M4: Столбец4 | N4: Столбец5 | O4: Столбец6 | P4: Столбец7 | Q4: Столбец8 | R4: Столбец9 | S4: Столбец10 | T4: Столбец11 | U4: Столбец12 | V4: Столбец13 | W4: Столбец14 | X4: Столбец15 | Y4: Столбец16 | Z4: Столбец17 | AA4: Столбец18 | AB4: Столбец19 | AC4: Столбец20 | AD4: Столбец21 | AE4: Столбец22 | AF4: Столбец23 | AG4: Столбец24 | AH4: Столбец25
A5: 10Д | B5: 21 | C5: 2.1 | D5: 4.8 | E5: 2.1 | F5: 4.8 | G5: 3.5 | H5: 2.1 | I5: 3.5 | J5: =IF(Таблица1[Количество человек прошедших оценку]=0,"",AVERAGE(Таблица1[[#This Row],[Математика]:[Физкультура]])) -> 3.271428571 | K5: =IF(AND($J5>=K$2,$J5<K$3),$J5,"") ->  | L5: =IF(AND($J5>=L$2,$J5<L$3),$J5,"") -> 3.271428571 | M5: =IF(AND($J5>=M$2,$J5<=M$3),$J5,"") ->  | N5: =IF(AND($C5>=K$2,$C5<K$3),$C5,"") -> 2.1 | O5: =IF(AND($C5>=L$2,$C5<L$3),$C5,"") ->  | P5: =IF(AND($C5>=M$2,$C5<=M$3),$C5,"") ->  | Q5: =IF(AND($D5>=K$2,$D5<K$3),$D5,"") ->  | R5: =IF(AND($D5>=L$2,$D5<L$3),$D5,"") ->  | S5: =IF(AND($D5>=M$2,$D5<=M$3),$D5,"") -> 4.8 | T5: =IF(AND($E5>=K$2,$E5<K$3),$E5,"") -> 2.1 | U5: =IF(AND($E5>=L$2,$E5<L$3),$E5,"") ->  | V5: =IF(AND($E5>=M$2,$E5<=M$3),$E5,"") ->  | W5: =IF(AND($F5>=K$2,$F5<K$3),$F5,"") ->  | X5: =IF(AND($F5>=L$2,$F5<L$3),$F5,"") ->  | Y5: =IF(AND($F5>=M$2,$F5<=M$3),$F5,"") -> 4.8 | Z5: =IF(AND($G5>=K$2,$G5<K$3),$G5,"") ->  | AA5: =IF(AND($G5>=L$2,$G5<L$3),$G5,"") -> 3.5 | AB5: =IF(AND($G5>=M$2,$G5<=M$3),$G5,"") ->  | AC5: =IF(AND($H5>=K$2,$H5<K$3),$H5,"") -> 2.1 | AD5: =IF(AND($H5>=L$2,$H5<L$3),$H5,"") ->  | AE5: =IF(AND($H5>=M$2,$H5<=M$3),$H5,"") ->  | AF5: =IF(AND($I5>=K$2,$I5<K$3),$I5,"") ->  | AG5: =IF(AND($I5>=L$2,$I5<L$3),$I5,"") -> 3.5 | AH5: =IF(AND($I5>=M$2,$I5<=M$3),$I5,"") -> 
A6: 9Б | B6: 22 | C6: 2.2 | D6: 4 | E6: 2.2 | F6: 4 | G6: 5 | H6: 2.2 | I6: 3 | J6: =IF(Таблица1[Количество человек прошедших оценку]=0,"",AVERAGE(Таблица1[[#This Row],[Математика]:[Физкультура]])) -> 3.228571429 | K6: =IF(AND($J6>=K$2,$J6<K$3),$J6,"") ->  | L6: =IF(AND($J6>=L$2,$J6<L$3),$J6,"") -> 3.228571429 | M6: =IF(AND($J6>=M$2,$J6<=M$3),$J6,"") ->  | N6: =IF(AND($C6>=K$2,$C6<K$3),$C6,"") -> 2.2 | O6: =IF(AND($C6>=L$2,$C6<L$3),$C6,"") ->  | P6: =IF(AND($C6>=M$2,$C6<=M$3),$C6,"") ->  | Q6: =IF(AND($D6>=K$2,$D6<K$3),$D6,"") ->  | R6: =IF(AND($D6>=L$2,$D6<L$3),$D6,"") ->  | S6: =IF(AND($D6>=M$2,$D6<=M$3),$D6,"") -> 4 | T6: =IF(AND($E6>=K$2,$E6<K$3),$E6,"") -> 2.2 | U6: =IF(AND($E6>=L$2,$E6<L$3),$E6,"") ->  | V6: =IF(AND($E6>=M$2,$E6<=M$3),$E6,"") ->  | W6: =IF(AND($F6>=K$2,$F6<K$3),$F6,"") ->  | X6: =IF(AND($F6>=L$2,$F6<L$3),$F6,"") ->  | Y6: =IF(AND($F6>=M$2,$F6<=M$3),$F6,"") -> 4 | Z6: =IF(AND($G6>=K$2,$G6<K$3),$G6,"") ->  | AA6: =IF(AND($G6>=L$2,$G6<L$3),$G6,"") ->  | AB6: =IF(AND($G6>=M$2,$G6<=M$3),$G6,"") -> 5 | AC6: =IF(AND($H6>=K$2,$H6<K$3),$H6,"") -> 2.2 | AD6: =IF(AND($H6>=L$2,$H6<L$3),$H6,"") ->  | AE6: =IF(AND($H6>=M$2,$H6<=M$3),$H6,"") ->  | AF6: =IF(AND($I6>=K$2,$I6<K$3),$I6,"") ->  | AG6: =IF(AND($I6>=L$2,$I6<L$3),$I6,"") -> 3 | AH6: =IF(AND($I6>=M$2,$I6<=M$3),$I6,"") -> 
A7: 9В | B7: 23 | C7: 2.3 | D7: 5 | E7: 2.3 | F7: 5 | G7: 2.1 | H7: 2.3 | I7: 5 | J7: =IF(Таблица1[Количество человек прошедших оценку]=0,"",AVERAGE(Таблица1[[#This Row],[Математика]:[Физкультура]])) -> 3.428571429 | K7: =IF(AND($J7>=K$2,$J7<K$3),$J7,"") ->  | L7: =IF(AND($J7>=L$2,$J7<L$3),$J7,"") -> 3.428571429 | M7: =IF(AND($J7>=M$2,$J7<=M$3),$J7,"") ->  | N7: =IF(AND($C7>=K$2,$C7<K$3),$C7,"") -> 2.3 | O7: =IF(AND($C7>=L$2,$C7<L$3),$C7,"") ->  | P7: =IF(AND($C7>=M$2,$C7<=M$3),$C7,"") ->  | Q7: =IF(AND($D7>=K$2,$D7<K$3),$D7,"") ->  | R7: =IF(AND($D7>=L$2,$D7<L$3),$D7,"") ->  | S7: =IF(AND($D7>=M$2,$D7<=M$3),$D7,"") -> 5 | T7: =IF(AND($E7>=K$2,$E7<K$3),$E7,"") -> 2.3 | U7: =IF(AND($E7>=L$2,$E7<L$3),$E7,"") ->  | V7: =IF(AND($E7>=M$2,$E7<=M$3),$E7,"") ->  | W7: =IF(AND($F7>=K$2,$F7<K$3),$F7,"") ->  | X7: =IF(AND($F7>=L$2,$F7<L$3),$F7,"") ->  | Y7: =IF(AND($F7>=M$2,$F7<=M$3),$F7,"") -> 5 | Z7: =IF(AND($G7>=K$2,$G7<K$3),$G7,"") -> 2.1 | AA7: =IF(AND($G7>=L$2,$G7<L$3),$G7,"") ->  | AB7: =IF(AND($G7>=M$2,$G7<=M$3),$G7,"") ->  | AC7: =IF(AND($H7>=K$2,$H7<K$3),$H7,"") -> 2.3 | AD7: =IF(AND($H7>=L$2,$H7<L$3),$H7,"") ->  | AE7: =IF(AND($H7>=M$2,$H7<=M$3),$H7,"") ->  | AF7: =IF(AND($I7>=K$2,$I7<K$3),$I7,"") ->  | AG7: =IF(AND($I7>=L$2,$I7<L$3),$I7,"") ->  | AH7: =IF(AND($I7>=M$2,$I7<=M$3),$I7,"") -> 5
A8: 10Г | B8: 20 | C8: 2.8 | D8: 2.1 | E8: 2.8 | F8: 2.1 | G8: 2.5 | H8: 2.8 | I8: 2.5 | J8: =IF(Таблица1[Количество человек прошедших оценку]=0,"",AVERAGE(Таблица1[[#This Row],[Математика]:[Физкультура]])) -> 2.514285714 | K8: =IF(AND($J8>=K$2,$J8<K$3),$J8,"") -> 2.514285714 | L8: =IF(AND($J8>=L$2,$J8<L$3),$J8,"") ->  | M8: =IF(AND($J8>=M$2,$J8<=M$3),$J8,"") ->  | N8: =IF(AND($C8>=K$2,$C8<K$3),$C8,"") -> 2.8 | O8: =IF(AND($C8>=L$2,$C8<L$3),$C8,"") ->  | P8: =IF(AND($C8>=M$2,$C8<=M$3),$C8,"") ->  | Q8: =IF(AND($D8>=K$2,$D8<K$3),$D8,"") -> 2.1 | R8: =IF(AND($D8>=L$2,$D8<L$3),$D8,"") ->  | S8: =IF(AND($D8>=M$2,$D8<=M$3),$D8,"") ->  | T8: =IF(AND($E8>=K$2,$E8<K$3),$E8,"") -> 2.8 | U8: =IF(AND($E8>=L$2,$E8<L$3),$E8,"") ->  | V8: =IF(AND($E8>=M$2,$E8<=M$3),$E8,"") ->  | W8: =IF(AND($F8>=K$2,$F8<K$3),$F8,"") -> 2.1 | X8: =IF(AND($F8>=L$2,$F8<L$3),$F8,"") ->  | Y8: =IF(AND($F8>=M$2,$F8<=M$3),$F8,"") ->  | Z8: =IF(AND($G8>=K$2,$G8<K$3),$G8,"") -> 2.5 | AA8: =IF(AND($G8>=L$2,$G8<L$3),$G8,"") ->  | AB8: =IF(AND($G8>=M$2,$G8<=M$3),$G8,"") ->  | AC8: =IF(AND($H8>=K$2,$H8<K$3),$H8,"") -> 2.8 | AD8: =IF(AND($H8>=L$2,$H8<L$3),$H8,"") ->  | AE8: =IF(AND($H8>=M$2,$H8<=M$3),$H8,"") ->  | AF8: =IF(AND($I8>=K$2,$I8<K$3),$I8,"") -> 2.5 | AG8: =IF(AND($I8>=L$2,$I8<L$3),$I8,"") ->  | AH8: =IF(AND($I8>=M$2,$I8<=M$3),$I8,"") -> 
A9: 9Д | B9: 15 | C9: 3 | D9: 2.5 | E9: 3 | F9: 2.5 | G9: 3 | H9: 3 | I9: 3 | J9: =IF(Таблица1[Количество человек прошедших оценку]=0,"",AVERAGE(Таблица1[[#This Row],[Математика]:[Физкультура]])) -> 2.857142857 | K9: =IF(AND($J9>=K$2,$J9<K$3),$J9,"") -> 2.857142857 | L9: =IF(AND($J9>=L$2,$J9<L$3),$J9,"") ->  | M9: =IF(AND($J9>=M$2,$J9<=M$3),$J9,"") ->  | N9: =IF(AND($C9>=K$2,$C9<K$3),$C9,"") ->  | O9: =IF(AND($C9>=L$2,$C9<L$3),$C9,"") -> 3 | P9: =IF(AND($C9>=M$2,$C9<=M$3),$C9,"") ->  | Q9: =IF(AND($D9>=K$2,$D9<K$3),$D9,"") -> 2.5 | R9: =IF(AND($D9>=L$2,$D9<L$3),$D9,"") ->  | S9: =IF(AND($D9>=M$2,$D9<=M$3),$D9,"") ->  | T9: =IF(AND($E9>=K$2,$E9<K$3),$E9,"") ->  | U9: =IF(AND($E9>=L$2,$E9<L$3),$E9,"") -> 3 | V9: =IF(AND($E9>=M$2,$E9<=M$3),$E9,"") ->  | W9: =IF(AND($F9>=K$2,$F9<K$3),$F9,"") -> 2.5 | X9: =IF(AND($F9>=L$2,$F9<L$3),$F9,"") ->  | Y9: =IF(AND($F9>=M$2,$F9<=M$3),$F9,"") ->  | Z9: =IF(AND($G9>=K$2,$G9<K$3),$G9,"") ->  | AA9: =IF(AND($G9>=L$2,$G9<L$3),$G9,"") -> 3 | AB9: =IF(AND($G9>=M$2,$G9<=M$3),$G9,"") ->  | AC9: =IF(AND($H9>=K$2,$H9<K$3),$H9,"") ->  | AD9: =IF(AND($H9>=L$2,$H9<L$3),$H9,"") -> 3 | AE9: =IF(AND($H9>=M$2,$H9<=M$3),$H9,"") ->  | AF9: =IF(AND($I9>=K$2,$I9<K$3),$I9,"") ->  | AG9: =IF(AND($I9>=L$2,$I9<L$3),$I9,"") -> 3 | AH9: =IF(AND($I9>=M$2,$I9<=M$3),$I9,"") -> 
A10: 9А | B10: 20 | C10: 3.5 | D10: 3 | E10: 3.5 | F10: 3 | G10: 4.4 | H10: 3.5 | I10: 4.5 | J10: =IF(Таблица1[Количество человек прошедших оценку]=0,"",AVERAGE(Таблица1[[#This Row],[Математика]:[Физкультура]])) -> 3.628571429 | K10: =IF(AND($J10>=K$2,$J10<K$3),$J10,"") ->  | L10: =IF(AND($J10>=L$2,$J10<L$3),$J10,"") -> 3.628571429 | M10: =IF(AND($J10>=M$2,$J10<=M$3),$J10,"") ->  | N10: =IF(AND($C10>=K$2,$C10<K$3),$C10,"") ->  | O10: =IF(AND($C10>=L$2,$C10<L$3),$C10,"") -> 3.5 | P10: =IF(AND($C10>=M$2,$C10<=M$3),$C10,"") ->  | Q10: =IF(AND($D10>=K$2,$D10<K$3),$D10,"") ->  | R10: =IF(AND($D10>=L$2,$D10<L$3),$D10,"") -> 3 | S10: =IF(AND($D10>=M$2,$D10<=M$3),$D10,"") ->  | T10: =IF(AND($E10>=K$2,$E10<K$3),$E10,"") ->  | U10: =IF(AND($E10>=L$2,$E10<L$3),$E10,"") -> 3.5 | V10: =IF(AND($E10>=M$2,$E10<=M$3),$E10,"") ->  | W10: =IF(AND($F10>=K$2,$F10<K$3),$F10,"") ->  | X10: =IF(AND($F10>=L$2,$F10<L$3),$F10,"") -> 3 | Y10: =IF(AND($F10>=M$2,$F10<=M$3),$F10,"") ->  | Z10: =IF(AND($G10>=K$2,$G10<K$3),$G10,"") ->  | AA10: =IF(AND($G10>=L$2,$G10<L$3),$G10,"") ->  | AB10: =IF(AND($G10>=M$2,$G10<=M$3),$G10,"") -> 4.4 | AC10: =IF(AND($H10>=K$2,$H10<K$3),$H10,"") ->  | AD10: =IF(AND($H10>=L$2,$H10<L$3),$H10,"") -> 3.5 | AE10: =IF(AND($H10>=M$2,$H10<=M$3),$H10,"") ->  | AF10: =IF(AND($I10>=K$2,$I10<K$3),$I10,"") ->  | AG10: =IF(AND($I10>=L$2,$I10<L$3),$I10,"") ->  | AH10: =IF(AND($I10>=M$2,$I10<=M$3),$I10,"") -> 4.5
A11: 10В | B11: 18 | C11: 3.8 | D11: 5 | E11: 3.8 | F11: 5 | G11: 4 | H11: 3.8 | I11: 4 | J11: =IF(Таблица1[Количество человек прошедших оценку]=0,"",AVERAGE(Таблица1[[#This Row],[Математика]:[Физкультура]])) -> 4.2 | K11: =IF(AND($J11>=K$2,$J11<K$3),$J11,"") ->  | L11: =IF(AND($J11>=L$2,$J11<L$3),$J11,"") ->  | M11: =IF(AND($J11>=M$2,$J11<=M$3),$J11,"") -> 4.2 | N11: =IF(AND($C11>=K$2,$C11<K$3),$C11,"") ->  | O11: =IF(AND($C11>=L$2,$C11<L$3),$C11,"") -> 3.8 | P11: =IF(AND($C11>=M$2,$C11<=M$3),$C11,"") ->  | Q11: =IF(AND($D11>=K$2,$D11<K$3),$D11,"") ->  | R11: =IF(AND($D11>=L$2,$D11<L$3),$D11,"") ->  | S11: =IF(AND($D11>=M$2,$D11<=M$3),$D11,"") -> 5 | T11: =IF(AND($E11>=K$2,$E11<K$3),$E11,"") ->  | U11: =IF(AND($E11>=L$2,$E11<L$3),$E11,"") -> 3.8 | V11: =IF(AND($E11>=M$2,$E11<=M$3),$E11,"") ->  | W11: =IF(AND($F11>=K$2,$F11<K$3),$F11,"") ->  | X11: =IF(AND($F11>=L$2,$F11<L$3),$F11,"") ->  | Y11: =IF(AND($F11>=M$2,$F11<=M$3),$F11,"") -> 5 | Z11: =IF(AND($G11>=K$2,$G11<K$3),$G11,"") ->  | AA11: =IF(AND($G11>=L$2,$G11<L$3),$G11,"") ->  | AB11: =IF(AND($G11>=M$2,$G11<=M$3),$G11,"") -> 4 | AC11: =IF(AND($H11>=K$2,$H11<K$3),$H11,"") ->  | AD11: =IF(AND($H11>=L$2,$H11<L$3),$H11,"") -> 3.8 | AE11: =IF(AND($H11>=M$2,$H11<=M$3),$H11,"") ->  | AF11: =IF(AND($I11>=K$2,$I11<K$3),$I11,"") ->  | AG11: =IF(AND($I11>=L$2,$I11<L$3),$I11,"") ->  | AH11: =IF(AND($I11>=M$2,$I11<=M$3),$I11,"") -> 4
A12: 9Г | B12: 24 | C12: 4.5 | D12: 4 | E12: 4.5 | F12: 4 | G12: 4.8 | H12: 4.5 | I12: 4.9 | J12: =IF(Таблица1[Количество человек прошедших оценку]=0,"",AVERAGE(Таблица1[[#This Row],[Математика]:[Физкультура]])) -> 4.457142857 | K12: =IF(AND($J12>=K$2,$J12<K$3),$J12,"") ->  | L12: =IF(AND($J12>=L$2,$J12<L$3),$J12,"") ->  | M12: =IF(AND($J12>=M$2,$J12<=M$3),$J12,"") -> 4.457142857 | N12: =IF(AND($C12>=K$2,$C12<K$3),$C12,"") ->  | O12: =IF(AND($C12>=L$2,$C12<L$3),$C12,"") ->  | P12: =IF(AND($C12>=M$2,$C12<=M$3),$C12,"") -> 4.5 | Q12: =IF(AND($D12>=K$2,$D12<K$3),$D12,"") ->  | R12: =IF(AND($D12>=L$2,$D12<L$3),$D12,"") ->  | S12: =IF(AND($D12>=M$2,$D12<=M$3),$D12,"") -> 4 | T12: =IF(AND($E12>=K$2,$E12<K$3),$E12,"") ->  | U12: =IF(AND($E12>=L$2,$E12<L$3),$E12,"") ->  | V12: =IF(AND($E12>=M$2,$E12<=M$3),$E12,"") -> 4.5 | W12: =IF(AND($F12>=K$2,$F12<K$3),$F12,"") ->  | X12: =IF(AND($F12>=L$2,$F12<L$3),$F12,"") ->  | Y12: =IF(AND($F12>=M$2,$F12<=M$3),$F12,"") -> 4 | Z12: =IF(AND($G12>=K$2,$G12<K$3),$G12,"") ->  | AA12: =IF(AND($G12>=L$2,$G12<L$3),$G12,"") ->  | AB12: =IF(AND($G12>=M$2,$G12<=M$3),$G12,"") -> 4.8 | AC12: =IF(AND($H12>=K$2,$H12<K$3),$H12,"") ->  | AD12: =IF(AND($H12>=L$2,$H12<L$3),$H12,"") ->  | AE12: =IF(AND($H12>=M$2,$H12<=M$3),$H12,"") -> 4.5 | AF12: =IF(AND($I12>=K$2,$I12<K$3),$I12,"") ->  | AG12: =IF(AND($I12>=L$2,$I12<L$3),$I12,"") ->  | AH12: =IF(AND($I12>=M$2,$I12<=M$3),$I12,"") -> 4.9
A13: 10Б | B13: 20 | C13: 4.9 | D13: 4.4 | E13: 4.9 | F13: 4.4 | G13: 5 | H13: 4.9 | I13: 5 | J13: =IF(Таблица1[Количество человек прошедших оценку]=0,"",AVERAGE(Таблица1[[#This Row],[Математика]:[Физкультура]])) -> 4.785714286 | K13: =IF(AND($J13>=K$2,$J13<K$3),$J13,"") ->  | L13: =IF(AND($J13>=L$2,$J13<L$3),$J13,"") ->  | M13: =IF(AND($J13>=M$2,$J13<=M$3),$J13,"") -> 4.785714286 | N13: =IF(AND($C13>=K$2,$C13<K$3),$C13,"") ->  | O13: =IF(AND($C13>=L$2,$C13<L$3),$C13,"") ->  | P13: =IF(AND($C13>=M$2,$C13<=M$3),$C13,"") -> 4.9 | Q13: =IF(AND($D13>=K$2,$D13<K$3),$D13,"") ->  | R13: =IF(AND($D13>=L$2,$D13<L$3),$D13,"") ->  | S13: =IF(AND($D13>=M$2,$D13<=M$3),$D13,"") -> 4.4 | T13: =IF(AND($E13>=K$2,$E13<K$3),$E13,"") ->  | U13: =IF(AND($E13>=L$2,$E13<L$3),$E13,"") ->  | V13: =IF(AND($E13>=M$2,$E13<=M$3),$E13,"") -> 4.9 | W13: =IF(AND($F13>=K$2,$F13<K$3),$F13,"") ->  | X13: =IF(AND($F13>=L$2,$F13<L$3),$F13,"") ->  | Y13: =IF(AND($F13>=M$2,$F13<=M$3),$F13,"") -> 4.4 | Z13: =IF(AND($G13>=K$2,$G13<K$3),$G13,"") ->  | AA13: =IF(AND($G13>=L$2,$G13<L$3),$G13,"") ->  | AB13: =IF(AND($G13>=M$2,$G13<=M$3),$G13,"") -> 5 | AC13: =IF(AND($H13>=K$2,$H13<K$3),$H13,"") ->  | AD13: =IF(AND($H13>=L$2,$H13<L$3),$H13,"") ->  | AE13: =IF(AND($H13>=M$2,$H13<=M$3),$H13,"") -> 4.9 | AF13: =IF(AND($I13>=K$2,$I13<K$3),$I13,"") ->  | AG13: =IF(AND($I13>=L$2,$I13<L$3),$I13,"") ->  | AH13: =IF(AND($I13>=M$2,$I13<=M$3),$I13,"") -> 5
A14: 10А | B14: 19 | C14: 5 | D14: 3.5 | E14: 5 | F14: 3.5 | G14: 4 | H14: 5 | I14: 4 | J14: =IF(Таблица1[Количество человек прошедших оценку]=0,"",AVERAGE(Таблица1[[#This Row],[Математика]:[Физкультура]])) -> 4.285714286 | K14: =IF(AND($J14>=K$2,$J14<K$3),$J14,"") ->  | L14: =IF(AND($J14>=L$2,$J14<L$3),$J14,"") ->  | M14: =IF(AND($J14>=M$2,$J14<=M$3),$J14,"") -> 4.285714286 | N14: =IF(AND($C14>=K$2,$C14<K$3),$C14,"") ->  | O14: =IF(AND($C14>=L$2,$C14<L$3),$C14,"") ->  | P14: =IF(AND($C14>=M$2,$C14<=M$3),$C14,"") -> 5 | Q14: =IF(AND($D14>=K$2,$D14<K$3),$D14,"") ->  | R14: =IF(AND($D14>=L$2,$D14<L$3),$D14,"") -> 3.5 | S14: =IF(AND($D14>=M$2,$D14<=M$3),$D14,"") ->  | T14: =IF(AND($E14>=K$2,$E14<K$3),$E14,"") ->  | U14: =IF(AND($E14>=L$2,$E14<L$3),$E14,"") ->  | V14: =IF(AND($E14>=M$2,$E14<=M$3),$E14,"") -> 5 | W14: =IF(AND($F14>=K$2,$F14<K$3),$F14,"") ->  | X14: =IF(AND($F14>=L$2,$F14<L$3),$F14,"") -> 3.5 | Y14: =IF(AND($F14>=M$2,$F14<=M$3),$F14,"") ->  | Z14: =IF(AND($G14>=K$2,$G14<K$3),$G14,"") ->  | AA14: =IF(AND($G14>=L$2,$G14<L$3),$G14,"") ->  | AB14: =IF(AND($G14>=M$2,$G14<=M$3),$G14,"") -> 4 | AC14: =IF(AND($H14>=K$2,$H14<K$3),$H14,"") ->  | AD14: =IF(AND($H14>=L$2,$H14<L$3),$H14,"") ->  | AE14: =IF(AND($H14>=M$2,$H14<=M$3),$H14,"") -> 5 | AF14: =IF(AND($I14>=K$2,$I14<K$3),$I14,"") ->  | AG14: =IF(AND($I14>=L$2,$I14<L$3),$I14,"") ->  | AH14: =IF(AND($I14>=M$2,$I14<=M$3),$I14,"") -> 4
A15: 0 | C15: =IF(Таблица1[Количество человек прошедших оценку]=0,"",AVERAGEIF(#REF!,Таблица1[Столбец1],#REF!)) ->  | D15: =IF(Таблица1[Количество человек прошедших оценку]=0,"",AVERAGEIF(#REF!,Таблица1[Столбец1],#REF!)) ->  | E15: =IF(Таблица1[Количество человек прошедших оценку]=0,"",AVERAGEIF(#REF!,Таблица1[Столбец1],#REF!)) ->  | F15: =IF(Таблица1[Количество человек прошедших оценку]=0,"",AVERAGEIF(#REF!,Таблица1[Столбец1],#REF!)) ->  | G15: =IF(Таблица1[Количество человек прошедших оценку]=0,"",AVERAGEIF(#REF!,Таблица1[Столбец1],#REF!)) ->  | H15: =IF(Таблица1[Количество человек прошедших оценку]=0,"",AVERAGEIF(#REF!,Таблица1[Столбец1],#REF!)) ->  | I15: =IF(Таблица1[Количество человек прошедших оценку]=0,"",AVERAGEIF(#REF!,Таблица1[Столбец1],#REF!)) ->  | J15: =IF(Таблица1[Количество человек прошедших оценку]=0,"",AVERAGE(Таблица1[[#This Row],[Математика]:[Физкультура]])) ->  | K15: =IF(AND($J15>=K$2,$J15<K$3),$J15,"") ->  | L15: =IF(AND($J15>=L$2,$J15<L$3),$J15,"") ->  | M15: =IF(AND($J15>=M$2,$J15<=M$3),$J15,"") ->  | N15: =IF(AND($C15>=K$2,$C15<K$3),$C15,"") ->  | O15: =IF(AND($C15>=L$2,$C15<L$3),$C15,"") ->  | P15: =IF(AND($C15>=M$2,$C15<=M$3),$C15,"") ->  | Q15: =IF(AND($D15>=K$2,$D15<K$3),$D15,"") ->  | R15: =IF(AND($D15>=L$2,$D15<L$3),$D15,"") ->  | S15: =IF(AND($D15>=M$2,$D15<=M$3),$D15,"") ->  | T15: =IF(AND($E15>=K$2,$E15<K$3),$E15,"") ->  | U15: =IF(AND($E15>=L$2,$E15<L$3),$E15,"") ->  | V15: =IF(AND($E15>=M$2,$E15<=M$3),$E15,"") ->  | W15: =IF(AND($F15>=K$2,$F15<K$3),$F15,"") ->  | X15: =IF(AND($F15>=L$2,$F15<L$3),$F15,"") ->  | Y15: =IF(AND($F15>=M$2,$F15<=M$3),$F15,"") ->  | Z15: =IF(AND($G15>=K$2,$G15<K$3),$G15,"") ->  | AA15: =IF(AND($G15>=L$2,$G15<L$3),$G15,"") ->  | AB15: =IF(AND($G15>=M$2,$G15<=M$3),$G15,"") ->  | AC15: =IF(AND($H15>=K$2,$H15<K$3),$H15,"") ->  | AD15: =IF(AND($H15>=L$2,$H15<L$3),$H15,"") ->  | AE15: =IF(AND($H15>=M$2,$H15<=M$3),$H15,"") ->  | AF15: =IF(AND($I15>=K$2,$I15<K$3),$I15,"") ->  | AG15: =IF(AND($I15>=L$2,$I15<L$3),$I15,"") ->  | AH15: =IF(AND($I15>=M$2,$I15<=M$3),$I15,"") -> 
A16: 0 | C16: =IF(Таблица1[Количество человек прошедших оценку]=0,"",AVERAGEIF(#REF!,Таблица1[Столбец1],#REF!)) ->  | D16: =IF(Таблица1[Количество человек прошедших оценку]=0,"",AVERAGEIF(#REF!,Таблица1[Столбец1],#REF!)) ->  | E16: =IF(Таблица1[Количество человек прошедших оценку]=0,"",AVERAGEIF(#REF!,Таблица1[Столбец1],#REF!)) ->  | F16: =IF(Таблица1[Количество человек прошедших оценку]=0,"",AVERAGEIF(#REF!,Таблица1[Столбец1],#REF!)) ->  | G16: =IF(Таблица1[Количество человек прошедших оценку]=0,"",AVERAGEIF(#REF!,Таблица1[Столбец1],#REF!)) ->  | H16: =IF(Таблица1[Количество человек прошедших оценку]=0,"",AVERAGEIF(#REF!,Таблица1[Столбец1],#REF!)) ->  | I16: =IF(Таблица1[Количество человек прошедших оценку]=0,"",AVERAGEIF(#REF!,Таблица1[Столбец1],#REF!)) ->  | J16: =IF(Таблица1[Количество человек прошедших оценку]=0,"",AVERAGE(Таблица1[[#This Row],[Математика]:[Физкультура]])) ->  | K16: =IF(AND($J16>=K$2,$J16<K$3),$J16,"") ->  | L16: =IF(AND($J16>=L$2,$J16<L$3),$J16,"") ->  | M16: =IF(AND($J16>=M$2,$J16<=M$3),$J16,"") ->  | N16: =IF(AND($C16>=K$2,$C16<K$3),$C16,"") ->  | O16: =IF(AND($C16>=L$2,$C16<L$3),$C16,"") ->  | P16: =IF(AND($C16>=M$2,$C16<=M$3),$C16,"") ->  | Q16: =IF(AND($D16>=K$2,$D16<K$3),$D16,"") ->  | R16: =IF(AND($D16>=L$2,$D16<L$3),$D16,"") ->  | S16: =IF(AND($D16>=M$2,$D16<=M$3),$D16,"") ->  | T16: =IF(AND($E16>=K$2,$E16<K$3),$E16,"") ->  | U16: =IF(AND($E16>=L$2,$E16<L$3),$E16,"") ->  | V16: =IF(AND($E16>=M$2,$E16<=M$3),$E16,"") ->  | W16: =IF(AND($F16>=K$2,$F16<K$3),$F16,"") ->  | X16: =IF(AND($F16>=L$2,$F16<L$3),$F16,"") ->  | Y16: =IF(AND($F16>=M$2,$F16<=M$3),$F16,"") ->  | Z16: =IF(AND($G16>=K$2,$G16<K$3),$G16,"") ->  | AA16: =IF(AND($G16>=L$2,$G16<L$3),$G16,"") ->  | AB16: =IF(AND($G16>=M$2,$G16<=M$3),$G16,"") ->  | AC16: =IF(AND($H16>=K$2,$H16<K$3),$H16,"") ->  | AD16: =IF(AND($H16>=L$2,$H16<L$3),$H16,"") ->  | AE16: =IF(AND($H16>=M$2,$H16<=M$3),$H16,"") ->  | AF16: =IF(AND($I16>=K$2,$I16<K$3),$I16,"") ->  | AG16: =IF(AND($I16>=L$2,$I16<L$3),$I16,"") ->  | AH16: =IF(AND($I16>=M$2,$I16<=M$3),$I16,"") -> 
A17: 0 | C17: =IF(Таблица1[Количество человек прошедших оценку]=0,"",AVERAGEIF(#REF!,Таблица1[Столбец1],#REF!)) ->  | D17: =IF(Таблица1[Количество человек прошедших оценку]=0,"",AVERAGEIF(#REF!,Таблица1[Столбец1],#REF!)) ->  | E17: =IF(Таблица1[Количество человек прошедших оценку]=0,"",AVERAGEIF(#REF!,Таблица1[Столбец1],#REF!)) ->  | F17: =IF(Таблица1[Количество человек прошедших оценку]=0,"",AVERAGEIF(#REF!,Таблица1[Столбец1],#REF!)) ->  | G17: =IF(Таблица1[Количество человек прошедших оценку]=0,"",AVERAGEIF(#REF!,Таблица1[Столбец1],#REF!)) ->  | H17: =IF(Таблица1[Количество человек прошедших оценку]=0,"",AVERAGEIF(#REF!,Таблица1[Столбец1],#REF!)) ->  | I17: =IF(Таблица1[Количество человек прошедших оценку]=0,"",AVERAGEIF(#REF!,Таблица1[Столбец1],#REF!)) ->  | J17: =IF(Таблица1[Количество человек прошедших оценку]=0,"",AVERAGE(Таблица1[[#This Row],[Математика]:[Физкультура]])) ->  | K17: =IF(AND($J17>=K$2,$J17<K$3),$J17,"") ->  | L17: =IF(AND($J17>=L$2,$J17<L$3),$J17,"") ->  | M17: =IF(AND($J17>=M$2,$J17<=M$3),$J17,"") ->  | N17: =IF(AND($C17>=K$2,$C17<K$3),$C17,"") ->  | O17: =IF(AND($C17>=L$2,$C17<L$3),$C17,"") ->  | P17: =IF(AND($C17>=M$2,$C17<=M$3),$C17,"") ->  | Q17: =IF(AND($D17>=K$2,$D17<K$3),$D17,"") ->  | R17: =IF(AND($D17>=L$2,$D17<L$3),$D17,"") ->  | S17: =IF(AND($D17>=M$2,$D17<=M$3),$D17,"") ->  | T17: =IF(AND($E17>=K$2,$E17<K$3),$E17,"") ->  | U17: =IF(AND($E17>=L$2,$E17<L$3),$E17,"") ->  | V17: =IF(AND($E17>=M$2,$E17<=M$3),$E17,"") ->  | W17: =IF(AND($F17>=K$2,$F17<K$3),$F17,"") ->  | X17: =IF(AND($F17>=L$2,$F17<L$3),$F17,"") ->  | Y17: =IF(AND($F17>=M$2,$F17<=M$3),$F17,"") ->  | Z17: =IF(AND($G17>=K$2,$G17<K$3),$G17,"") ->  | AA17: =IF(AND($G17>=L$2,$G17<L$3),$G17,"") ->  | AB17: =IF(AND($G17>=M$2,$G17<=M$3),$G17,"") ->  | AC17: =IF(AND($H17>=K$2,$H17<K$3),$H17,"") ->  | AD17: =IF(AND($H17>=L$2,$H17<L$3),$H17,"") ->  | AE17: =IF(AND($H17>=M$2,$H17<=M$3),$H17,"") ->  | AF17: =IF(AND($I17>=K$2,$I17<K$3),$I17,"") ->  | AG17: =IF(AND($I17>=L$2,$I17<L$3),$I17,"") ->  | AH17: =IF(AND($I17>=M$2,$I17<=M$3),$I17,"") -> 
A18: 0 | C18: =IF(Таблица1[Количество человек прошедших оценку]=0,"",AVERAGEIF(#REF!,Таблица1[Столбец1],#REF!)) ->  | D18: =IF(Таблица1[Количество человек прошедших оценку]=0,"",AVERAGEIF(#REF!,Таблица1[Столбец1],#REF!)) ->  | E18: =IF(Таблица1[Количество человек прошедших оценку]=0,"",AVERAGEIF(#REF!,Таблица1[Столбец1],#REF!)) ->  | F18: =IF(Таблица1[Количество человек прошедших оценку]=0,"",AVERAGEIF(#REF!,Таблица1[Столбец1],#REF!)) ->  | G18: =IF(Таблица1[Количество человек прошедших оценку]=0,"",AVERAGEIF(#REF!,Таблица1[Столбец1],#REF!)) ->  | H18: =IF(Таблица1[Количество человек прошедших оценку]=0,"",AVERAGEIF(#REF!,Таблица1[Столбец1],#REF!)) ->  | I18: =IF(Таблица1[Количество человек прошедших оценку]=0,"",AVERAGEIF(#REF!,Таблица1[Столбец1],#REF!)) ->  | J18: =IF(Таблица1[Количество человек прошедших оценку]=0,"",AVERAGE(Таблица1[[#This Row],[Математика]:[Физкультура]])) ->  | K18: =IF(AND($J18>=K$2,$J18<K$3),$J18,"") ->  | L18: =IF(AND($J18>=L$2,$J18<L$3),$J18,"") ->  | M18: =IF(AND($J18>=M$2,$J18<=M$3),$J18,"") ->  | N18: =IF(AND($C18>=K$2,$C18<K$3),$C18,"") ->  | O18: =IF(AND($C18>=L$2,$C18<L$3),$C18,"") ->  | P18: =IF(AND($C18>=M$2,$C18<=M$3),$C18,"") ->  | Q18: =IF(AND($D18>=K$2,$D18<K$3),$D18,"") ->  | R18: =IF(AND($D18>=L$2,$D18<L$3),$D18,"") ->  | S18: =IF(AND($D18>=M$2,$D18<=M$3),$D18,"") ->  | T18: =IF(AND($E18>=K$2,$E18<K$3),$E18,"") ->  | U18: =IF(AND($E18>=L$2,$E18<L$3),$E18,"") ->  | V18: =IF(AND($E18>=M$2,$E18<=M$3),$E18,"") ->  | W18: =IF(AND($F18>=K$2,$F18<K$3),$F18,"") ->  | X18: =IF(AND($F18>=L$2,$F18<L$3),$F18,"") ->  | Y18: =IF(AND($F18>=M$2,$F18<=M$3),$F18,"") ->  | Z18: =IF(AND($G18>=K$2,$G18<K$3),$G18,"") ->  | AA18: =IF(AND($G18>=L$2,$G18<L$3),$G18,"") ->  | AB18: =IF(AND($G18>=M$2,$G18<=M$3),$G18,"") ->  | AC18: =IF(AND($H18>=K$2,$H18<K$3),$H18,"") ->  | AD18: =IF(AND($H18>=L$2,$H18<L$3),$H18,"") ->  | AE18: =IF(AND($H18>=M$2,$H18<=M$3),$H18,"") ->  | AF18: =IF(AND($I18>=K$2,$I18<K$3),$I18,"") ->  | AG18: =IF(AND($I18>=L$2,$I18<L$3),$I18,"") ->  | AH18: =IF(AND($I18>=M$2,$I18<=M$3),$I18,"") -> 
A19: 0 | C19: =IF(Таблица1[Количество человек прошедших оценку]=0,"",AVERAGEIF(#REF!,Таблица1[Столбец1],#REF!)) ->  | D19: =IF(Таблица1[Количество человек прошедших оценку]=0,"",AVERAGEIF(#REF!,Таблица1[Столбец1],#REF!)) ->  | E19: =IF(Таблица1[Количество человек прошедших оценку]=0,"",AVERAGEIF(#REF!,Таблица1[Столбец1],#REF!)) ->  | F19: =IF(Таблица1[Количество человек прошедших оценку]=0,"",AVERAGEIF(#REF!,Таблица1[Столбец1],#REF!)) ->  | G19: =IF(Таблица1[Количество человек прошедших оценку]=0,"",AVERAGEIF(#REF!,Таблица1[Столбец1],#REF!)) ->  | H19: =IF(Таблица1[Количество человек прошедших оценку]=0,"",AVERAGEIF(#REF!,Таблица1[Столбец1],#REF!)) ->  | I19: =IF(Таблица1[Количество человек прошедших оценку]=0,"",AVERAGEIF(#REF!,Таблица1[Столбец1],#REF!)) ->  | J19: =IF(Таблица1[Количество человек прошедших оценку]=0,"",AVERAGE(Таблица1[[#This Row],[Математика]:[Физкультура]])) ->  | K19: =IF(AND($J19>=K$2,$J19<K$3),$J19,"") ->  | L19: =IF(AND($J19>=L$2,$J19<L$3),$J19,"") ->  | M19: =IF(AND($J19>=M$2,$J19<=M$3),$J19,"") ->  | N19: =IF(AND($C19>=K$2,$C19<K$3),$C19,"") ->  | O19: =IF(AND($C19>=L$2,$C19<L$3),$C19,"") ->  | P19: =IF(AND($C19>=M$2,$C19<=M$3),$C19,"") ->  | Q19: =IF(AND($D19>=K$2,$D19<K$3),$D19,"") ->  | R19: =IF(AND($D19>=L$2,$D19<L$3),$D19,"") ->  | S19: =IF(AND($D19>=M$2,$D19<=M$3),$D19,"") ->  | T19: =IF(AND($E19>=K$2,$E19<K$3),$E19,"") ->  | U19: =IF(AND($E19>=L$2,$E19<L$3),$E19,"") ->  | V19: =IF(AND($E19>=M$2,$E19<=M$3),$E19,"") ->  | W19: =IF(AND($F19>=K$2,$F19<K$3),$F19,"") ->  | X19: =IF(AND($F19>=L$2,$F19<L$3),$F19,"") ->  | Y19: =IF(AND($F19>=M$2,$F19<=M$3),$F19,"") ->  | Z19: =IF(AND($G19>=K$2,$G19<K$3),$G19,"") ->  | AA19: =IF(AND($G19>=L$2,$G19<L$3),$G19,"") ->  | AB19: =IF(AND($G19>=M$2,$G19<=M$3),$G19,"") ->  | AC19: =IF(AND($H19>=K$2,$H19<K$3),$H19,"") ->  | AD19: =IF(AND($H19>=L$2,$H19<L$3),$H19,"") ->  | AE19: =IF(AND($H19>=M$2,$H19<=M$3),$H19,"") ->  | AF19: =IF(AND($I19>=K$2,$I19<K$3),$I19,"") ->  | AG19: =IF(AND($I19>=L$2,$I19<L$3),$I19,"") ->  | AH19: =IF(AND($I19>=M$2,$I19<=M$3),$I19,"") -> 
A20: 0 | C20: =IF(Таблица1[Количество человек прошедших оценку]=0,"",AVERAGEIF(#REF!,Таблица1[Столбец1],#REF!)) ->  | D20: =IF(Таблица1[Количество человек прошедших оценку]=0,"",AVERAGEIF(#REF!,Таблица1[Столбец1],#REF!)) ->  | E20: =IF(Таблица1[Количество человек прошедших оценку]=0,"",AVERAGEIF(#REF!,Таблица1[Столбец1],#REF!)) ->  | F20: =IF(Таблица1[Количество человек прошедших оценку]=0,"",AVERAGEIF(#REF!,Таблица1[Столбец1],#REF!)) ->  | G20: =IF(Таблица1[Количество человек прошедших оценку]=0,"",AVERAGEIF(#REF!,Таблица1[Столбец1],#REF!)) ->  | H20: =IF(Таблица1[Количество человек прошедших оценку]=0,"",AVERAGEIF(#REF!,Таблица1[Столбец1],#REF!)) ->  | I20: =IF(Таблица1[Количество человек прошедших оценку]=0,"",AVERAGEIF(#REF!,Таблица1[Столбец1],#REF!)) ->  | J20: =IF(Таблица1[Количество человек прошедших оценку]=0,"",AVERAGE(Таблица1[[#This Row],[Математика]:[Физкультура]])) ->  | K20: =IF(AND($J20>=K$2,$J20<K$3),$J20,"") ->  | L20: =IF(AND($J20>=L$2,$J20<L$3),$J20,"") ->  | M20: =IF(AND($J20>=M$2,$J20<=M$3),$J20,"") ->  | N20: =IF(AND($C20>=K$2,$C20<K$3),$C20,"") ->  | O20: =IF(AND($C20>=L$2,$C20<L$3),$C20,"") ->  | P20: =IF(AND($C20>=M$2,$C20<=M$3),$C20,"") ->  | Q20: =IF(AND($D20>=K$2,$D20<K$3),$D20,"") ->  | R20: =IF(AND($D20>=L$2,$D20<L$3),$D20,"") ->  | S20: =IF(AND($D20>=M$2,$D20<=M$3),$D20,"") ->  | T20: =IF(AND($E20>=K$2,$E20<K$3),$E20,"") ->  | U20: =IF(AND($E20>=L$2,$E20<L$3),$E20,"") ->  | V20: =IF(AND($E20>=M$2,$E20<=M$3),$E20,"") ->  | W20: =IF(AND($F20>=K$2,$F20<K$3),$F20,"") ->  | X20: =IF(AND($F20>=L$2,$F20<L$3),$F20,"") ->  | Y20: =IF(AND($F20>=M$2,$F20<=M$3),$F20,"") ->  | Z20: =IF(AND($G20>=K$2,$G20<K$3),$G20,"") ->  | AA20: =IF(AND($G20>=L$2,$G20<L$3),$G20,"") ->  | AB20: =IF(AND($G20>=M$2,$G20<=M$3),$G20,"") ->  | AC20: =IF(AND($H20>=K$2,$H20<K$3),$H20,"") ->  | AD20: =IF(AND($H20>=L$2,$H20<L$3),$H20,"") ->  | AE20: =IF(AND($H20>=M$2,$H20<=M$3),$H20,"") ->  | AF20: =IF(AND($I20>=K$2,$I20<K$3),$I20,"") ->  | AG20: =IF(AND($I20>=L$2,$I20<L$3),$I20,"") ->  | AH20: =IF(AND($I20>=M$2,$I20<=M$3),$I20,"") -> 
A21: 0 | C21: =IF(Таблица1[Количество человек прошедших оценку]=0,"",AVERAGEIF(#REF!,Таблица1[Столбец1],#REF!)) ->  | D21: =IF(Таблица1[Количество человек прошедших оценку]=0,"",AVERAGEIF(#REF!,Таблица1[Столбец1],#REF!)) ->  | E21: =IF(Таблица1[Количество человек прошедших оценку]=0,"",AVERAGEIF(#REF!,Таблица1[Столбец1],#REF!)) ->  | F21: =IF(Таблица1[Количество человек прошедших оценку]=0,"",AVERAGEIF(#REF!,Таблица1[Столбец1],#REF!)) ->  | G21: =IF(Таблица1[Количество человек прошедших оценку]=0,"",AVERAGEIF(#REF!,Таблица1[Столбец1],#REF!)) ->  | H21: =IF(Таблица1[Количество человек прошедших оценку]=0,"",AVERAGEIF(#REF!,Таблица1[Столбец1],#REF!)) ->  | I21: =IF(Таблица1[Количество человек прошедших оценку]=0,"",AVERAGEIF(#REF!,Таблица1[Столбец1],#REF!)) ->  | J21: =IF(Таблица1[Количество человек прошедших оценку]=0,"",AVERAGE(Таблица1[[#This Row],[Математика]:[Физкультура]])) ->  | K21: =IF(AND($J21>=K$2,$J21<K$3),$J21,"") ->  | L21: =IF(AND($J21>=L$2,$J21<L$3),$J21,"") ->  | M21: =IF(AND($J21>=M$2,$J21<=M$3),$J21,"") ->  | N21: =IF(AND($C21>=K$2,$C21<K$3),$C21,"") ->  | O21: =IF(AND($C21>=L$2,$C21<L$3),$C21,"") ->  | P21: =IF(AND($C21>=M$2,$C21<=M$3),$C21,"") ->  | Q21: =IF(AND($D21>=K$2,$D21<K$3),$D21,"") ->  | R21: =IF(AND($D21>=L$2,$D21<L$3),$D21,"") ->  | S21: =IF(AND($D21>=M$2,$D21<=M$3),$D21,"") ->  | T21: =IF(AND($E21>=K$2,$E21<K$3),$E21,"") ->  | U21: =IF(AND($E21>=L$2,$E21<L$3),$E21,"") ->  | V21: =IF(AND($E21>=M$2,$E21<=M$3),$E21,"") ->  | W21: =IF(AND($F21>=K$2,$F21<K$3),$F21,"") ->  | X21: =IF(AND($F21>=L$2,$F21<L$3),$F21,"") ->  | Y21: =IF(AND($F21>=M$2,$F21<=M$3),$F21,"") ->  | Z21: =IF(AND($G21>=K$2,$G21<K$3),$G21,"") ->  | AA21: =IF(AND($G21>=L$2,$G21<L$3),$G21,"") ->  | AB21: =IF(AND($G21>=M$2,$G21<=M$3),$G21,"") ->  | AC21: =IF(AND($H21>=K$2,$H21<K$3),$H21,"") ->  | AD21: =IF(AND($H21>=L$2,$H21<L$3),$H21,"") ->  | AE21: =IF(AND($H21>=M$2,$H21<=M$3),$H21,"") ->  | AF21: =IF(AND($I21>=K$2,$I21<K$3),$I21,"") ->  | AG21: =IF(AND($I21>=L$2,$I21<L$3),$I21,"") ->  | AH21: =IF(AND($I21>=M$2,$I21<=M$3),$I21,"") -> 
A22: 0 | C22: =IF(Таблица1[Количество человек прошедших оценку]=0,"",AVERAGEIF(#REF!,Таблица1[Столбец1],#REF!)) ->  | D22: =IF(Таблица1[Количество человек прошедших оценку]=0,"",AVERAGEIF(#REF!,Таблица1[Столбец1],#REF!)) ->  | E22: =IF(Таблица1[Количество человек прошедших оценку]=0,"",AVERAGEIF(#REF!,Таблица1[Столбец1],#REF!)) ->  | F22: =IF(Таблица1[Количество человек прошедших оценку]=0,"",AVERAGEIF(#REF!,Таблица1[Столбец1],#REF!)) ->  | G22: =IF(Таблица1[Количество человек прошедших оценку]=0,"",AVERAGEIF(#REF!,Таблица1[Столбец1],#REF!)) ->  | H22: =IF(Таблица1[Количество человек прошедших оценку]=0,"",AVERAGEIF(#REF!,Таблица1[Столбец1],#REF!)) ->  | I22: =IF(Таблица1[Количество человек прошедших оценку]=0,"",AVERAGEIF(#REF!,Таблица1[Столбец1],#REF!)) ->  | J22: =IF(Таблица1[Количество человек прошедших оценку]=0,"",AVERAGE(Таблица1[[#This Row],[Математика]:[Физкультура]])) ->  | K22: =IF(AND($J22>=K$2,$J22<K$3),$J22,"") ->  | L22: =IF(AND($J22>=L$2,$J22<L$3),$J22,"") ->  | M22: =IF(AND($J22>=M$2,$J22<=M$3),$J22,"") ->  | N22: =IF(AND($C22>=K$2,$C22<K$3),$C22,"") ->  | O22: =IF(AND($C22>=L$2,$C22<L$3),$C22,"") ->  | P22: =IF(AND($C22>=M$2,$C22<=M$3),$C22,"") ->  | Q22: =IF(AND($D22>=K$2,$D22<K$3),$D22,"") ->  | R22: =IF(AND($D22>=L$2,$D22<L$3),$D22,"") ->  | S22: =IF(AND($D22>=M$2,$D22<=M$3),$D22,"") ->  | T22: =IF(AND($E22>=K$2,$E22<K$3),$E22,"") ->  | U22: =IF(AND($E22>=L$2,$E22<L$3),$E22,"") ->  | V22: =IF(AND($E22>=M$2,$E22<=M$3),$E22,"") ->  | W22: =IF(AND($F22>=K$2,$F22<K$3),$F22,"") ->  | X22: =IF(AND($F22>=L$2,$F22<L$3),$F22,"") ->  | Y22: =IF(AND($F22>=M$2,$F22<=M$3),$F22,"") ->  | Z22: =IF(AND($G22>=K$2,$G22<K$3),$G22,"") ->  | AA22: =IF(AND($G22>=L$2,$G22<L$3),$G22,"") ->  | AB22: =IF(AND($G22>=M$2,$G22<=M$3),$G22,"") ->  | AC22: =IF(AND($H22>=K$2,$H22<K$3),$H22,"") ->  | AD22: =IF(AND($H22>=L$2,$H22<L$3),$H22,"") ->  | AE22: =IF(AND($H22>=M$2,$H22<=M$3),$H22,"") ->  | AF22: =IF(AND($I22>=K$2,$I22<K$3),$I22,"") ->  | AG22: =IF(AND($I22>=L$2,$I22<L$3),$I22,"") ->  | AH22: =IF(AND($I22>=M$2,$I22<=M$3),$I22,"") -> 
A23: 0 | C23: =IF(Таблица1[Количество человек прошедших оценку]=0,"",AVERAGEIF(#REF!,Таблица1[Столбец1],#REF!)) ->  | D23: =IF(Таблица1[Количество человек прошедших оценку]=0,"",AVERAGEIF(#REF!,Таблица1[Столбец1],#REF!)) ->  | E23: =IF(Таблица1[Количество человек прошедших оценку]=0,"",AVERAGEIF(#REF!,Таблица1[Столбец1],#REF!)) ->  | F23: =IF(Таблица1[Количество человек прошедших оценку]=0,"",AVERAGEIF(#REF!,Таблица1[Столбец1],#REF!)) ->  | G23: =IF(Таблица1[Количество человек прошедших оценку]=0,"",AVERAGEIF(#REF!,Таблица1[Столбец1],#REF!)) ->  | H23: =IF(Таблица1[Количество человек прошедших оценку]=0,"",AVERAGEIF(#REF!,Таблица1[Столбец1],#REF!)) ->  | I23: =IF(Таблица1[Количество человек прошедших оценку]=0,"",AVERAGEIF(#REF!,Таблица1[Столбец1],#REF!)) ->  | J23: =IF(Таблица1[Количество человек прошедших оценку]=0,"",AVERAGE(Таблица1[[#This Row],[Математика]:[Физкультура]])) ->  | K23: =IF(AND($J23>=K$2,$J23<K$3),$J23,"") ->  | L23: =IF(AND($J23>=L$2,$J23<L$3),$J23,"") ->  | M23: =IF(AND($J23>=M$2,$J23<=M$3),$J23,"") ->  | N23: =IF(AND($C23>=K$2,$C23<K$3),$C23,"") ->  | O23: =IF(AND($C23>=L$2,$C23<L$3),$C23,"") ->  | P23: =IF(AND($C23>=M$2,$C23<=M$3),$C23,"") ->  | Q23: =IF(AND($D23>=K$2,$D23<K$3),$D23,"") ->  | R23: =IF(AND($D23>=L$2,$D23<L$3),$D23,"") ->  | S23: =IF(AND($D23>=M$2,$D23<=M$3),$D23,"") ->  | T23: =IF(AND($E23>=K$2,$E23<K$3),$E23,"") ->  | U23: =IF(AND($E23>=L$2,$E23<L$3),$E23,"") ->  | V23: =IF(AND($E23>=M$2,$E23<=M$3),$E23,"") ->  | W23: =IF(AND($F23>=K$2,$F23<K$3),$F23,"") ->  | X23: =IF(AND($F23>=L$2,$F23<L$3),$F23,"") ->  | Y23: =IF(AND($F23>=M$2,$F23<=M$3),$F23,"") ->  | Z23: =IF(AND($G23>=K$2,$G23<K$3),$G23,"") ->  | AA23: =IF(AND($G23>=L$2,$G23<L$3),$G23,"") ->  | AB23: =IF(AND($G23>=M$2,$G23<=M$3),$G23,"") ->  | AC23: =IF(AND($H23>=K$2,$H23<K$3),$H23,"") ->  | AD23: =IF(AND($H23>=L$2,$H23<L$3),$H23,"") ->  | AE23: =IF(AND($H23>=M$2,$H23<=M$3),$H23,"") ->  | AF23: =IF(AND($I23>=K$2,$I23<K$3),$I23,"") ->  | AG23: =IF(AND($I23>=L$2,$I23<L$3),$I23,"") ->  | AH23: =IF(AND($I23>=M$2,$I23<=M$3),$I23,"") -> 
A24: 0 | C24: =IF(Таблица1[Количество человек прошедших оценку]=0,"",AVERAGEIF(#REF!,Таблица1[Столбец1],#REF!)) ->  | D24: =IF(Таблица1[Количество человек прошедших оценку]=0,"",AVERAGEIF(#REF!,Таблица1[Столбец1],#REF!)) ->  | E24: =IF(Таблица1[Количество человек прошедших оценку]=0,"",AVERAGEIF(#REF!,Таблица1[Столбец1],#REF!)) ->  | F24: =IF(Таблица1[Количество человек прошедших оценку]=0,"",AVERAGEIF(#REF!,Таблица1[Столбец1],#REF!)) ->  | G24: =IF(Таблица1[Количество человек прошедших оценку]=0,"",AVERAGEIF(#REF!,Таблица1[Столбец1],#REF!)) ->  | H24: =IF(Таблица1[Количество человек прошедших оценку]=0,"",AVERAGEIF(#REF!,Таблица1[Столбец1],#REF!)) ->  | I24: =IF(Таблица1[Количество человек прошедших оценку]=0,"",AVERAGEIF(#REF!,Таблица1[Столбец1],#REF!)) ->  | J24: =IF(Таблица1[Количество человек прошедших оценку]=0,"",AVERAGE(Таблица1[[#This Row],[Математика]:[Физкультура]])) ->  | K24: =IF(AND($J24>=K$2,$J24<K$3),$J24,"") ->  | L24: =IF(AND($J24>=L$2,$J24<L$3),$J24,"") ->  | M24: =IF(AND($J24>=M$2,$J24<=M$3),$J24,"") ->  | N24: =IF(AND($C24>=K$2,$C24<K$3),$C24,"") ->  | O24: =IF(AND($C24>=L$2,$C24<L$3),$C24,"") ->  | P24: =IF(AND($C24>=M$2,$C24<=M$3),$C24,"") ->  | Q24: =IF(AND($D24>=K$2,$D24<K$3),$D24,"") ->  | R24: =IF(AND($D24>=L$2,$D24<L$3),$D24,"") ->  | S24: =IF(AND($D24>=M$2,$D24<=M$3),$D24,"") ->  | T24: =IF(AND($E24>=K$2,$E24<K$3),$E24,"") ->  | U24: =IF(AND($E24>=L$2,$E24<L$3),$E24,"") ->  | V24: =IF(AND($E24>=M$2,$E24<=M$3),$E24,"") ->  | W24: =IF(AND($F24>=K$2,$F24<K$3),$F24,"") ->  | X24: =IF(AND($F24>=L$2,$F24<L$3),$F24,"") ->  | Y24: =IF(AND($F24>=M$2,$F24<=M$3),$F24,"") ->  | Z24: =IF(AND($G24>=K$2,$G24<K$3),$G24,"") ->  | AA24: =IF(AND($G24>=L$2,$G24<L$3),$G24,"") ->  | AB24: =IF(AND($G24>=M$2,$G24<=M$3),$G24,"") ->  | AC24: =IF(AND($H24>=K$2,$H24<K$3),$H24,"") ->  | AD24: =IF(AND($H24>=L$2,$H24<L$3),$H24,"") ->  | AE24: =IF(AND($H24>=M$2,$H24<=M$3),$H24,"") ->  | AF24: =IF(AND($I24>=K$2,$I24<K$3),$I24,"") ->  | AG24: =IF(AND($I24>=L$2,$I24<L$3),$I24,"") ->  | AH24: =IF(AND($I24>=M$2,$I24<=M$3),$I24,"") -> 
A25: 0 | C25: =IF(Таблица1[Количество человек прошедших оценку]=0,"",AVERAGEIF(#REF!,Таблица1[Столбец1],#REF!)) ->  | D25: =IF(Таблица1[Количество человек прошедших оценку]=0,"",AVERAGEIF(#REF!,Таблица1[Столбец1],#REF!)) ->  | E25: =IF(Таблица1[Количество человек прошедших оценку]=0,"",AVERAGEIF(#REF!,Таблица1[Столбец1],#REF!)) ->  | F25: =IF(Таблица1[Количество человек прошедших оценку]=0,"",AVERAGEIF(#REF!,Таблица1[Столбец1],#REF!)) ->  | G25: =IF(Таблица1[Количество человек прошедших оценку]=0,"",AVERAGEIF(#REF!,Таблица1[Столбец1],#REF!)) ->  | H25: =IF(Таблица1[Количество человек прошедших оценку]=0,"",AVERAGEIF(#REF!,Таблица1[Столбец1],#REF!)) ->  | I25: =IF(Таблица1[Количество человек прошедших оценку]=0,"",AVERAGEIF(#REF!,Таблица1[Столбец1],#REF!)) ->  | J25: =IF(Таблица1[Количество человек прошедших оценку]=0,"",AVERAGE(Таблица1[[#This Row],[Математика]:[Физкультура]])) ->  | K25: =IF(AND($J25>=K$2,$J25<K$3),$J25,"") ->  | L25: =IF(AND($J25>=L$2,$J25<L$3),$J25,"") ->  | M25: =IF(AND($J25>=M$2,$J25<=M$3),$J25,"") ->  | N25: =IF(AND($C25>=K$2,$C25<K$3),$C25,"") ->  | O25: =IF(AND($C25>=L$2,$C25<L$3),$C25,"") ->  | P25: =IF(AND($C25>=M$2,$C25<=M$3),$C25,"") ->  | Q25: =IF(AND($D25>=K$2,$D25<K$3),$D25,"") ->  | R25: =IF(AND($D25>=L$2,$D25<L$3),$D25,"") ->  | S25: =IF(AND($D25>=M$2,$D25<=M$3),$D25,"") ->  | T25: =IF(AND($E25>=K$2,$E25<K$3),$E25,"") ->  | U25: =IF(AND($E25>=L$2,$E25<L$3),$E25,"") ->  | V25: =IF(AND($E25>=M$2,$E25<=M$3),$E25,"") ->  | W25: =IF(AND($F25>=K$2,$F25<K$3),$F25,"") ->  | X25: =IF(AND($F25>=L$2,$F25<L$3),$F25,"") ->  | Y25: =IF(AND($F25>=M$2,$F25<=M$3),$F25,"") ->  | Z25: =IF(AND($G25>=K$2,$G25<K$3),$G25,"") ->  | AA25: =IF(AND($G25>=L$2,$G25<L$3),$G25,"") ->  | AB25: =IF(AND($G25>=M$2,$G25<=M$3),$G25,"") ->  | AC25: =IF(AND($H25>=K$2,$H25<K$3),$H25,"") ->  | AD25: =IF(AND($H25>=L$2,$H25<L$3),$H25,"") ->  | AE25: =IF(AND($H25>=M$2,$H25<=M$3),$H25,"") ->  | AF25: =IF(AND($I25>=K$2,$I25<K$3),$I25,"") ->  | AG25: =IF(AND($I25>=L$2,$I25<L$3),$I25,"") ->  | AH25: =IF(AND($I25>=M$2,$I25<=M$3),$I25,"") -> 
A26: 0 | C26: =IF(Таблица1[Количество человек прошедших оценку]=0,"",AVERAGEIF(#REF!,Таблица1[Столбец1],#REF!)) ->  | D26: =IF(Таблица1[Количество человек прошедших оценку]=0,"",AVERAGEIF(#REF!,Таблица1[Столбец1],#REF!)) ->  | E26: =IF(Таблица1[Количество человек прошедших оценку]=0,"",AVERAGEIF(#REF!,Таблица1[Столбец1],#REF!)) ->  | F26: =IF(Таблица1[Количество человек прошедших оценку]=0,"",AVERAGEIF(#REF!,Таблица1[Столбец1],#REF!)) ->  | G26: =IF(Таблица1[Количество человек прошедших оценку]=0,"",AVERAGEIF(#REF!,Таблица1[Столбец1],#REF!)) ->  | H26: =IF(Таблица1[Количество человек прошедших оценку]=0,"",AVERAGEIF(#REF!,Таблица1[Столбец1],#REF!)) ->  | I26: =IF(Таблица1[Количество человек прошедших оценку]=0,"",AVERAGEIF(#REF!,Таблица1[Столбец1],#REF!)) ->  | J26: =IF(Таблица1[Количество человек прошедших оценку]=0,"",AVERAGE(Таблица1[[#This Row],[Математика]:[Физкультура]])) ->  | K26: =IF(AND($J26>=K$2,$J26<K$3),$J26,"") ->  | L26: =IF(AND($J26>=L$2,$J26<L$3),$J26,"") ->  | M26: =IF(AND($J26>=M$2,$J26<=M$3),$J26,"") ->  | N26: =IF(AND($C26>=K$2,$C26<K$3),$C26,"") ->  | O26: =IF(AND($C26>=L$2,$C26<L$3),$C26,"") ->  | P26: =IF(AND($C26>=M$2,$C26<=M$3),$C26,"") ->  | Q26: =IF(AND($D26>=K$2,$D26<K$3),$D26,"") ->  | R26: =IF(AND($D26>=L$2,$D26<L$3),$D26,"") ->  | S26: =IF(AND($D26>=M$2,$D26<=M$3),$D26,"") ->  | T26: =IF(AND($E26>=K$2,$E26<K$3),$E26,"") ->  | U26: =IF(AND($E26>=L$2,$E26<L$3),$E26,"") ->  | V26: =IF(AND($E26>=M$2,$E26<=M$3),$E26,"") ->  | W26: =IF(AND($F26>=K$2,$F26<K$3),$F26,"") ->  | X26: =IF(AND($F26>=L$2,$F26<L$3),$F26,"") ->  | Y26: =IF(AND($F26>=M$2,$F26<=M$3),$F26,"") ->  | Z26: =IF(AND($G26>=K$2,$G26<K$3),$G26,"") ->  | AA26: =IF(AND($G26>=L$2,$G26<L$3),$G26,"") ->  | AB26: =IF(AND($G26>=M$2,$G26<=M$3),$G26,"") ->  | AC26: =IF(AND($H26>=K$2,$H26<K$3),$H26,"") ->  | AD26: =IF(AND($H26>=L$2,$H26<L$3),$H26,"") ->  | AE26: =IF(AND($H26>=M$2,$H26<=M$3),$H26,"") ->  | AF26: =IF(AND($I26>=K$2,$I26<K$3),$I26,"") ->  | AG26: =IF(AND($I26>=L$2,$I26<L$3),$I26,"") ->  | AH26: =IF(AND($I26>=M$2,$I26<=M$3),$I26,"") -> 
A27: 0 | C27: =IF(Таблица1[Количество человек прошедших оценку]=0,"",AVERAGEIF(#REF!,Таблица1[Столбец1],#REF!)) ->  | D27: =IF(Таблица1[Количество человек прошедших оценку]=0,"",AVERAGEIF(#REF!,Таблица1[Столбец1],#REF!)) ->  | E27: =IF(Таблица1[Количество человек прошедших оценку]=0,"",AVERAGEIF(#REF!,Таблица1[Столбец1],#REF!)) ->  | F27: =IF(Таблица1[Количество человек прошедших оценку]=0,"",AVERAGEIF(#REF!,Таблица1[Столбец1],#REF!)) ->  | G27: =IF(Таблица1[Количество человек прошедших оценку]=0,"",AVERAGEIF(#REF!,Таблица1[Столбец1],#REF!)) ->  | H27: =IF(Таблица1[Количество человек прошедших оценку]=0,"",AVERAGEIF(#REF!,Таблица1[Столбец1],#REF!)) ->  | I27: =IF(Таблица1[Количество человек прошедших оценку]=0,"",AVERAGEIF(#REF!,Таблица1[Столбец1],#REF!)) ->  | J27: =IF(Таблица1[Количество человек прошедших оценку]=0,"",AVERAGE(Таблица1[[#This Row],[Математика]:[Физкультура]])) ->  | K27: =IF(AND($J27>=K$2,$J27<K$3),$J27,"") ->  | L27: =IF(AND($J27>=L$2,$J27<L$3),$J27,"") ->  | M27: =IF(AND($J27>=M$2,$J27<=M$3),$J27,"") ->  | N27: =IF(AND($C27>=K$2,$C27<K$3),$C27,"") ->  | O27: =IF(AND($C27>=L$2,$C27<L$3),$C27,"") ->  | P27: =IF(AND($C27>=M$2,$C27<=M$3),$C27,"") ->  | Q27: =IF(AND($D27>=K$2,$D27<K$3),$D27,"") ->  | R27: =IF(AND($D27>=L$2,$D27<L$3),$D27,"") ->  | S27: =IF(AND($D27>=M$2,$D27<=M$3),$D27,"") ->  | T27: =IF(AND($E27>=K$2,$E27<K$3),$E27,"") ->  | U27: =IF(AND($E27>=L$2,$E27<L$3),$E27,"") ->  | V27: =IF(AND($E27>=M$2,$E27<=M$3),$E27,"") ->  | W27: =IF(AND($F27>=K$2,$F27<K$3),$F27,"") ->  | X27: =IF(AND($F27>=L$2,$F27<L$3),$F27,"") ->  | Y27: =IF(AND($F27>=M$2,$F27<=M$3),$F27,"") ->  | Z27: =IF(AND($G27>=K$2,$G27<K$3),$G27,"") ->  | AA27: =IF(AND($G27>=L$2,$G27<L$3),$G27,"") ->  | AB27: =IF(AND($G27>=M$2,$G27<=M$3),$G27,"") ->  | AC27: =IF(AND($H27>=K$2,$H27<K$3),$H27,"") ->  | AD27: =IF(AND($H27>=L$2,$H27<L$3),$H27,"") ->  | AE27: =IF(AND($H27>=M$2,$H27<=M$3),$H27,"") ->  | AF27: =IF(AND($I27>=K$2,$I27<K$3),$I27,"") ->  | AG27: =IF(AND($I27>=L$2,$I27<L$3),$I27,"") ->  | AH27: =IF(AND($I27>=M$2,$I27<=M$3),$I27,"") -> 
A28: 0 | C28: =IF(Таблица1[Количество человек прошедших оценку]=0,"",AVERAGEIF(#REF!,Таблица1[Столбец1],#REF!)) ->  | D28: =IF(Таблица1[Количество человек прошедших оценку]=0,"",AVERAGEIF(#REF!,Таблица1[Столбец1],#REF!)) ->  | E28: =IF(Таблица1[Количество человек прошедших оценку]=0,"",AVERAGEIF(#REF!,Таблица1[Столбец1],#REF!)) ->  | F28: =IF(Таблица1[Количество человек прошедших оценку]=0,"",AVERAGEIF(#REF!,Таблица1[Столбец1],#REF!)) ->  | G28: =IF(Таблица1[Количество человек прошедших оценку]=0,"",AVERAGEIF(#REF!,Таблица1[Столбец1],#REF!)) ->  | H28: =IF(Таблица1[Количество человек прошедших оценку]=0,"",AVERAGEIF(#REF!,Таблица1[Столбец1],#REF!)) ->  | I28: =IF(Таблица1[Количество человек прошедших оценку]=0,"",AVERAGEIF(#REF!,Таблица1[Столбец1],#REF!)) ->  | J28: =IF(Таблица1[Количество человек прошедших оценку]=0,"",AVERAGE(Таблица1[[#This Row],[Математика]:[Физкультура]])) ->  | K28: =IF(AND($J28>=K$2,$J28<K$3),$J28,"") ->  | L28: =IF(AND($J28>=L$2,$J28<L$3),$J28,"") ->  | M28: =IF(AND($J28>=M$2,$J28<=M$3),$J28,"") ->  | N28: =IF(AND($C28>=K$2,$C28<K$3),$C28,"") ->  | O28: =IF(AND($C28>=L$2,$C28<L$3),$C28,"") ->  | P28: =IF(AND($C28>=M$2,$C28<=M$3),$C28,"") ->  | Q28: =IF(AND($D28>=K$2,$D28<K$3),$D28,"") ->  | R28: =IF(AND($D28>=L$2,$D28<L$3),$D28,"") ->  | S28: =IF(AND($D28>=M$2,$D28<=M$3),$D28,"") ->  | T28: =IF(AND($E28>=K$2,$E28<K$3),$E28,"") ->  | U28: =IF(AND($E28>=L$2,$E28<L$3),$E28,"") ->  | V28: =IF(AND($E28>=M$2,$E28<=M$3),$E28,"") ->  | W28: =IF(AND($F28>=K$2,$F28<K$3),$F28,"") ->  | X28: =IF(AND($F28>=L$2,$F28<L$3),$F28,"") ->  | Y28: =IF(AND($F28>=M$2,$F28<=M$3),$F28,"") ->  | Z28: =IF(AND($G28>=K$2,$G28<K$3),$G28,"") ->  | AA28: =IF(AND($G28>=L$2,$G28<L$3),$G28,"") ->  | AB28: =IF(AND($G28>=M$2,$G28<=M$3),$G28,"") ->  | AC28: =IF(AND($H28>=K$2,$H28<K$3),$H28,"") ->  | AD28: =IF(AND($H28>=L$2,$H28<L$3),$H28,"") ->  | AE28: =IF(AND($H28>=M$2,$H28<=M$3),$H28,"") ->  | AF28: =IF(AND($I28>=K$2,$I28<K$3),$I28,"") ->  | AG28: =IF(AND($I28>=L$2,$I28<L$3),$I28,"") ->  | AH28: =IF(AND($I28>=M$2,$I28<=M$3),$I28,"") -> 
A29: ="Итого по "&B2 -> Итого по | B29: =SUBTOTAL(109,Таблица1[Количество человек прошедших оценку]) -> 202 | C29: =SUMPRODUCT(Таблица1[Количество человек прошедших оценку],Таблица1[Математика])/Таблица1[[#Totals],[Количество человек прошедших оценку]] -> 3.395049505 | D29: =SUMPRODUCT(Таблица1[Количество человек прошедших оценку],Таблица1[Русский])/Таблица1[[#Totals],[Количество человек прошедших оценку]] -> 3.88019802 | E29: =SUMPRODUCT(Таблица1[Количество человек прошедших оценку],Таблица1[Литература])/Таблица1[[#Totals],[Количество человек прошедших оценку]] -> 3.395049505 | F29: =SUMPRODUCT(Таблица1[Количество человек прошедших оценку],Таблица1[Физика])/Таблица1[[#Totals],[Количество человек прошедших оценку]] -> 3.88019802 | G29: =SUMPRODUCT(Таблица1[Количество человек прошедших оценку],Таблица1[География])/Таблица1[[#Totals],[Количество человек прошедших оценку]] -> 3.851485149 | H29: =SUMPRODUCT(Таблица1[Количество человек прошедших оценку],Таблица1[Информатика])/Таблица1[[#Totals],[Количество человек прошедших оценку]] -> 3.395049505 | I29: =SUMPRODUCT(Таблица1[Количество человек прошедших оценку],Таблица1[Физкультура])/Таблица1[[#Totals],[Количество человек прошедших оценку]] -> 3.985643564 | J29: =SUMPRODUCT(Таблица1[Количество человек прошедших оценку],Таблица1[Итого средняя оценка])/Таблица1[[#Totals],[Количество человек прошедших оценку]] -> 3.683239038
